fUST/lending_fUST_20260212
["ID","MTS","AMOUNT","RATE_DAILY","PERIOD"]
[405149657,1770881438626,-250.0,0.00023938,2]
[405149660,1770881438637,-250.0,0.00023938,2]
[405149662,1770881438647,-500.0,0.00023938,2]
[405149664,1770881438656,-250.0,0.00023938,2]
[405149666,1770881438666,-500.0,0.00023938,2]
[405149668,1770881438675,-250.0,0.00023938,2]
[405149670,1770881438685,-500.0,0.00023938,2]
[405149671,1770881438695,-250.0,0.00023938,2]
[405149672,1770881438705,-298.05592488,0.00023938,2]
[405149673,1770881438714,-500.0,0.00023938,2]
[405149674,1770881438724,-201.93286099,0.00023938,2]
[405149675,1770881438734,-209.40437684,0.00023938,2]
[405149676,1770881438744,-198.65652937,0.00023938,2]
[405149677,1770881438754,-217.15233878,0.00023938,2]
[405149678,1770881438763,-337.67538073,0.00023938,2]
[405149679,1770881438773,-225.18697532,0.00023938,2]
[405149680,1770881438783,-233.51889341,0.00023938,2]
[405149681,1770881438792,-273.42047428,0.00023938,2]
[405149682,1770881438802,-242.15909246,0.00023938,2]
[405149683,1770881438812,-251.11897888,0.00023938,2]
[405149684,1770881438822,-298.246722,0.00023938,2]
[405149685,1770881438831,-250.0,0.00023938,2]
[405149686,1770881438841,-167.57899057,0.00023938,2]
[405149687,1770881438850,-250.0,0.00023938,2]
[405149688,1770881438860,-250.0,0.00023938,2]
[405149689,1770881438869,-250.0,0.00023938,2]
[405149690,1770881438878,-250.0,0.00023938,2]
[405149691,1770881438888,-250.0,0.00023938,2]
[405149692,1770881438897,-250.0,0.00023938,2]
[405149693,1770881438907,-250.0,0.00023938,2]
[405149694,1770881438917,-250.0,0.00023938,2]
[405149695,1770881438927,-250.0,0.00023938,2]
[405149696,1770881438938,-250.0,0.00023938,2]
[405149697,1770881438948,-250.0,0.00023938,2]
[405149698,1770881438958,-250.0,0.00023938,2]
[405149699,1770881438969,-1986.02,0.00023962,10]
[405149701,1770881438978,-1655.02,0.00023962,10]
[405149703,1770881438987,-500.0,0.00023966,2]
[405149705,1770881438996,-320.94851018,0.00023967,2]
[405149706,1770881439006,-265.95747278,0.00023967,2]
[405149834,1770881440272,-250.0,0.00023938,2]
[405149836,1770881440281,-250.0,0.00023938,2]
[405149838,1770881440291,-288.89607988,0.00023938,2]
[405149840,1770881440300,-234.04252722,0.00023967,2]
[405149842,1770881440309,-476.18589088,0.00023967,2]
[405150270,1770881445902,-23.81410912,0.00023967,2]
[405150272,1770881445912,-500.0,0.00023969,2]
[405150273,1770881445921,-500.0,0.00023969,2]
[405150274,1770881445930,-500.0,0.0002397,2]
[405150275,1770881445939,-173.26667208,0.0002397,2]
[405150290,1770881487518,500.0,0.00013699,2]
[405150291,1770881487563,1000.0,0.00014247,2]
[405150292,1770881487620,1500.0,0.00014795,2]
[405150293,1770881487674,2000.0,0.00015342,2]
[405150294,1770881487730,1000.0,0.0001589,2]
[405150295,1770881489636,300.0,0.00013673,2]
[405150296,1770881489687,600.0,0.00014221,2]
[405150297,1770881489745,340.55280025,0.00015316,2]
[405150298,1770881489804,900.0,0.00014768,2]
[405150299,1770881496152,500.0,0.00013699,2]
[405150300,1770881496198,1000.0,0.00014247,2]
[405150301,1770881496260,504.36731807,0.00014795,2]
[405150312,1770881557203,388.66220874,0.0002352,2]
[405150313,1770881576356,1375.74431102,0.0002352,2]
[405150318,1770881645755,179.38026036,0.00023206,5]
[405150319,1770881653072,172.91193326,0.00023206,5]
[405150320,1770881712626,500.0,0.00013699,2]
[405150321,1770881712663,773.73828603,0.00014247,2]
[405150322,1770881724121,500.0,0.00013699,2]
[405150323,1770881774440,500.0,0.00013699,2]
[405150324,1770881774487,403.40117922,0.00014247,2]
[405150325,1770881776939,506.18723461,0.00013699,2]
[405150326,1770881779385,500.0,0.00013273,2]
[405150327,1770881779434,1000.0,0.00013821,2]
[405150328,1770881779495,1500.0,0.00014368,2]
[405150329,1770881779548,2000.0,0.00014916,2]
[405150330,1770881779603,1500.0,0.00015464,2]
[405150331,1770881782849,500.0,0.00013699,2]
[405150332,1770881782901,1004.19545126,0.00014247,2]
[405150336,1770881869084,1000.0,0.00023,4]
[405150339,1770881899640,333.0,0.00030136,120]
[405150344,1770881972668,400.0,0.00030136,120]
[405150348,1770882007041,500.0,0.00013699,2]
[405150349,1770882007077,500.0,0.00013273,2]
[405150350,1770882007116,420.06653808,0.00014247,2]
[405150351,1770882007292,1000.0,0.00013821,2]
[405150352,1770882007339,1500.0,0.00014368,2]
[405150353,1770882007379,1023.14758522,0.00014916,2]
[405150354,1770882014064,500.0,0.00013699,2]
[405150355,1770882014118,1000.0,0.00014247,2]
[405150361,1770882083879,2281.0,0.00023145,2]
[405150362,1770882086285,500.62351729,0.00013699,2]
[405150363,1770882089647,4719.0,0.00023098,2]
[405150364,1770882094133,500.0,0.00013273,2]
[405150365,1770882094171,813.60155111,0.00013821,2]
[405150366,1770882096275,4719.0,0.00023195,2]
[405150379,1770882306032,500.0,0.00013699,2]
[405150380,1770882306087,225.02611187,0.00014795,2]
[405150381,1770882306156,1000.0,0.00014247,2]
[405150383,1770882379796,506.57478705,0.00013273,2]
[405150384,1770882383597,823.60394197,0.00013821,2]
[405150385,1770882383652,500.0,0.00013273,2]
[405150386,1770882386589,593.92282975,0.00014247,2]
[405150387,1770882386621,500.0,0.00013699,2]
[405150388,1770882395100,500.0,0.00013699,2]
[405150389,1770882395154,500.0,0.00014247,2]
[405150390,1770882397455,500.0,0.00013273,2]
[405150391,1770882397513,288.77671826,0.00013821,2]
[405150392,1770882398973,545.99230023,0.00014247,2]
[405150393,1770882399055,500.0,0.00013699,2]
[405150394,1770882409035,500.0,0.00013699,2]
[405150395,1770882409075,1008.02709033,0.00014247,2]
[405150408,1770882490958,168.0,0.00023379,2]
[405150413,1770882604126,500.0,0.00013273,2]
[405150414,1770882604282,457.44277415,0.00013821,2]
[405150415,1770882604339,503.66108662,0.00013273,2]
[405150416,1770882611203,1007.76716223,0.00014247,2]
[405150417,1770882611260,500.0,0.00013699,2]
[405150419,1770882624719,19778.0271512,0.00022933,2]
[405150476,1770882638262,-168.0,0.00023727,2]
[405150478,1770882638271,-251.26544481,0.0002377,2]
[405150480,1770882638281,-2257.51054411,0.00023867,2]
[405150482,1770882638291,-500.0,0.00023899,2]
[405150484,1770882638300,-500.0,0.00023911,2]
[405150485,1770882638310,-234.55092214,0.00023912,2]
[405151184,1770882646195,-265.44907786,0.00023912,2]
[405151185,1770882646205,-500.0,0.00023912,2]
[405151186,1770882646215,-188.87218922,0.00023937,2]
[405151187,1770882646225,-1200.0,0.0002395,2]
[405151188,1770882646234,-262.48419518,0.00023951,2]
[405151189,1770882646244,-300.0,0.00023951,2]
[405151190,1770882646254,-300.0,0.00023951,2]
[405151191,1770882646263,-300.0,0.00023951,2]
[405151192,1770882646272,-300.0,0.00023951,2]
[405151193,1770882646282,-300.0,0.00023951,2]
[405151194,1770882646291,-157.506637,0.00023952,2]
[405151195,1770882646303,-5708.95102715,0.00023952,2]
[405151196,1770882646345,-3791.6282966,0.00023952,2]
[405151200,1770882646910,-14174.2443616,0.00023952,2]
[405151220,1770882697116,221.1882638,0.00013699,2]
[405151221,1770882823984,1500.0,0.00015,2]
[405151228,1770882987120,391005.0,0.000235,2]
[405151310,1770883204349,185.46574592,0.00013273,2]
[405151314,1770883231156,348.01390943,0.00022787,2]
[405151320,1770883323767,-218.43492476,0.0002385,2]
[405151321,1770883344146,218.43492476,0.0002352,2]
[405151328,1770883367405,197.21,0.00030137,120]
[405151329,1770883388009,5000.0,0.0002352,2]
[405151330,1770883410336,379.38172068,0.0002352,2]
[405151331,1770883425374,386.05819379,0.00022787,2]
[405151332,1770883428400,441.20936433,0.00022787,2]
[405151333,1770883431101,262.3410775,0.00022781,2]
[405151334,1770883462717,-604.45262344,0.00023575,2]
[405151335,1770883465679,-553.79539611,0.00023575,2]
[405151336,1770883477176,383.103911,0.00022928,2]
[405151337,1770883527770,337.66098374,0.00022787,2]
[405151340,1770883587542,500.0,0.00013273,2]
[405151341,1770883587602,577.27379565,0.00013821,2]
[405151347,1770883822050,-41.42347376,0.00023575,2]
[405151348,1770883822072,-189.5765263,0.00023575,2]
[405151449,1770883838364,-600.4234737,0.00023575,2]
[405151451,1770883838373,-184.59846537,0.00023613,2]
[405151453,1770883838383,-184.59846537,0.00023674,2]
[405151455,1770883838392,-251.26544481,0.00023713,2]
[405151458,1770883838402,-184.59846537,0.00023735,2]
[405151461,1770883838412,-1693.3695991,0.00023835,2]
[405151645,1770883840460,-3e-08,0.00023835,2]
[405152179,1770883856387,635.8855634,0.0002352,2]
[405152180,1770883863972,5000.0,0.0002352,2]
[405152181,1770883872288,168.0,0.00023423,2]
[405152182,1770883886814,1028.19194841,0.0002352,2]
[405152213,1770884110394,460.27592186,0.00013273,2]
[405152219,1770884166595,185.46574592,0.00013273,2]
[405152235,1770884229369,500.0,0.00013273,2]
[405152236,1770884231316,500.0,0.00013273,2]
[405152237,1770884231370,1000.0,0.00013821,2]
[405152238,1770884231423,1000.0,0.00014368,2]
[405152239,1770884231818,500.0,0.00013699,2]
[405152240,1770884231870,1000.0,0.00014247,2]
[405152241,1770884231936,1500.0,0.00014795,2]
[405152242,1770884231983,710.51286641,0.00015342,2]
[405152243,1770884283505,179.38026036,0.00023204,5]
[405152272,1770884668872,5000.0,0.0002352,2]
[405152274,1770884709737,500.0,0.00013273,2]
[405152283,1770884772086,500.0,0.00013273,2]
[405152284,1770884777952,170.13659962,0.0002352,2]
[405152285,1770884782317,500.0,0.00013699,2]
[405152286,1770884782370,567.33320417,0.00014247,2]
[405152287,1770884786073,1631.62186632,0.0002352,2]
[405152288,1770884793847,3198.24153406,0.0002352,2]
[405152327,1770884908515,900.62262,0.00015,2]
[405152408,1770885032357,-168.0,0.00023679,2]
[405152409,1770885032366,-246.24013591,0.00023695,2]
[405152411,1770885032376,-2045.83934421,0.000238,2]
[405152414,1770885032386,-281.56507524,0.0002385,2]
[405152415,1770885032396,-2000.0,0.00023894,2]
[405152416,1770885032405,-2000.0,0.00023894,2]
[405152417,1770885032414,-2000.0,0.00023894,2]
[405152418,1770885032424,-1258.36465309,0.00023894,2]
[405152419,1770885032435,-741.63534691,0.00023894,2]
[405152420,1770885032446,-1322.4421649,0.00023894,2]
[405152441,1770885038467,-677.5578351,0.00023894,2]
[405152443,1770885038478,-2000.0,0.00023894,2]
[405152445,1770885038488,-2000.0,0.00023894,2]
[405152447,1770885038499,-2000.0,0.00023894,2]
[405152449,1770885038508,-2000.0,0.00023894,2]
[405152451,1770885038518,-801.68925863,0.00023894,2]
[405152453,1770885038532,-1198.31074137,0.00023894,2]
[405152455,1770885038542,-2000.0,0.00023894,2]
[405152457,1770885038554,-2000.0,0.00023894,2]
[405152459,1770885038564,-2000.0,0.00023894,2]
[405152461,1770885038573,-1585.83864322,0.00023894,2]
[405152463,1770885038583,-50000.0,0.00023895,2]
[405152466,1770885038593,-1200.0,0.00023895,2]
[405152467,1770885038602,-300.0,0.00023896,2]
[405152469,1770885038613,-300.0,0.00023896,2]
[405152471,1770885038623,-300.0,0.00023896,2]
[405152473,1770885038634,-300.0,0.00023896,2]
[405152475,1770885038643,-300.0,0.00023896,2]
[405152477,1770885038653,-500.0,0.00023896,2]
[405152479,1770885038662,-500.0,0.00023896,2]
[405152481,1770885038672,-500.0,0.00023896,2]
[405152483,1770885038682,-500.0,0.00023896,2]
[405152496,1770885038787,-288.48848124,0.00023896,2]
[405152498,1770885038797,-500.0,0.00023896,2]
[405152500,1770885038807,-558.62936934,0.00023896,2]
[405152502,1770885038817,-506.52457159,0.00023896,2]
[405152504,1770885038826,-167.45,0.000239,2]
[405152506,1770885038835,-428.9837639,0.00023901,3]
[405152508,1770885038845,-320.94851018,0.00023911,2]
[405152510,1770885038854,-500.0,0.00023911,2]
[405152512,1770885038863,-500.0,0.00023911,2]
[405152514,1770885038873,-500.0,0.00023911,2]
[405152516,1770885038883,-231.42885126,0.00023938,2]
[405152518,1770885038892,-416.57193227,0.00023938,2]
[405152520,1770885038902,-500.0,0.00023941,2]
[405152522,1770885038911,-500.0,0.00023941,2]
[405152524,1770885038921,-234.55092214,0.00023941,2]
[405152526,1770885038931,-168.0,0.00023956,2]
[405152528,1770885038940,-168.0,0.00023958,2]
[405152530,1770885038950,-222.0,0.00023966,2]
[405152532,1770885038961,-265.95747278,0.00023966,2]
[405152534,1770885038972,-233.0,0.00023967,2]
[405152536,1770885038982,-155.0,0.00023967,2]
[405152538,1770885038991,-1153.36,0.0002397,10]
[405152540,1770885039000,-500.0,0.00023976,2]
[405152542,1770885039009,-3122.1,0.0002398,3]
[405152544,1770885039018,-1561.05,0.0002398,3]
[405152546,1770885039027,-780.52,0.0002398,3]
[405152548,1770885039037,-390.26,0.0002398,3]
[405152550,1770885039046,-195.13,0.0002398,3]
[405152552,1770885039056,-585.43,0.0002398,3]
[405152554,1770885039066,-1800.79,0.0002398,10]
[405152556,1770885039075,-250.0,0.00023986,2]
[405152558,1770885039086,-250.0,0.00023986,2]
[405152560,1770885039095,-250.0,0.00023986,2]
[405152562,1770885039105,-250.0,0.00023986,2]
[405152564,1770885039115,-250.0,0.00023986,2]
[405152566,1770885039125,-250.0,0.00023986,2]
[405152568,1770885039134,-250.0,0.00023986,2]
[405152570,1770885039143,-250.0,0.00023986,2]
[405152572,1770885039152,-250.0,0.00023986,2]
[405152574,1770885039162,-250.0,0.00023986,2]
[405152576,1770885039171,-250.0,0.00023986,2]
[405152578,1770885039179,-250.0,0.00023986,2]
[405152580,1770885039189,-250.0,0.00023986,2]
[405152582,1770885039198,-250.0,0.00023986,2]
[405152584,1770885039208,-250.0,0.00023986,2]
[405152586,1770885039217,-250.0,0.00023986,2]
[405152588,1770885039226,-167.57899057,0.00023986,2]
[405152590,1770885039235,-287.60191875,0.00023986,2]
[405152592,1770885039246,-250.0,0.00023986,2]
[405152594,1770885039259,-298.05592488,0.00023986,2]
[405152596,1770885039268,-250.0,0.00023986,2]
[405152598,1770885039277,-250.0,0.00023986,2]
[405152600,1770885039288,-201.93286099,0.00023986,2]
[405152602,1770885039298,-337.67538073,0.00023986,2]
[405152604,1770885039307,-250.0,0.00023986,2]
[405152606,1770885039317,-209.40437684,0.00023986,2]
[405152608,1770885039327,-250.0,0.00023986,2]
[405152610,1770885039336,-217.15233878,0.00023986,2]
[405152612,1770885039345,-225.18697532,0.00023986,2]
[405152614,1770885039355,-250.0,0.00023986,2]
[405152616,1770885039365,-233.51889341,0.00023986,2]
[405152618,1770885039376,-242.15909246,0.00023986,2]
[405152620,1770885039387,-251.11897888,0.00023986,2]
[405152622,1770885039402,-298.246722,0.00023986,2]
[405152624,1770885039411,-500.0,0.00023986,2]
[405152626,1770885039420,-500.0,0.00023986,2]
[405152628,1770885039430,-273.42047428,0.00023986,2]
[405152630,1770885039439,-500.0,0.00023986,2]
[405152632,1770885039448,-500.0,0.00023986,2]
[405152634,1770885039457,-198.65652937,0.00023986,2]
[405152636,1770885039466,-13137.31275102,0.0002399,2]
[405152747,1770885040525,-1500.65,0.00023975,10]
[405152749,1770885040536,-8230.5489049,0.0002399,2]
[405153297,1770885046441,-263.92,0.0002399,2]
[405153310,1770885052891,178.04162156,0.0002352,2]
[405153311,1770885068418,509.00562496,0.00013273,2]
[405153312,1770885120794,-300.0,0.00023989,2]
[405153313,1770885120814,-300.0,0.0002399,2]
[405153314,1770885120825,-3114.46139086,0.0002399,2]
[405153316,1770885255894,214.71076149,0.0002306,3]
[405153317,1770885294008,168.0,0.00023179,2]
[405153318,1770885370568,500.0,0.00013699,2]
[405153319,1770885370608,1000.0,0.00014247,2]
[405153320,1770885430487,500.0,0.00013273,2]
[405153321,1770885430551,1000.00437204,0.00013821,2]
[405153322,1770885434734,500.0,0.00013699,2]
[405153323,1770885434784,473.80922961,0.00014247,2]
[405153324,1770885616913,500.0,0.00013699,2]
[405153325,1770885616981,1089.79307192,0.00014247,2]
[405153326,1770885668182,508.08631574,0.00013273,2]
[405153327,1770885723285,505.30348931,0.00013273,2]
[405153328,1770886022785,320.756401,0.00022878,2]
[405153409,1770886238539,-1790.10942621,0.00023779,2]
[405153411,1770886238550,-241.3153332,0.00023797,2]
[405153413,1770886238560,-168.0,0.00023812,2]
[405153415,1770886238569,-601.84432598,0.00023876,2]
[405153417,1770886238579,-500.0,0.00023876,2]
[405153419,1770886238589,-500.0,0.00023876,2]
[405153421,1770886238598,-500.0,0.00023876,2]
[405153423,1770886238609,-500.0,0.00023876,2]
[405153425,1770886238618,-500.0,0.00023876,2]
[405153427,1770886238630,-500.0,0.00023876,2]
[405153430,1770886238640,-500.0,0.00023876,2]
[405153432,1770886238650,-500.0,0.00023876,2]
[405153434,1770886238661,-500.0,0.00023876,2]
[405153436,1770886238671,-558.62936934,0.00023876,2]
[405153438,1770886238681,-500.0,0.00023876,2]
[405153439,1770886238692,-500.0,0.00023876,2]
[405153441,1770886238702,-500.0,0.00023876,2]
[405153443,1770886238712,-500.0,0.00023876,2]
[405153445,1770886238722,-238.48848124,0.00023876,2]
[405153447,1770886238731,-500.0,0.00023876,2]
[405153449,1770886238741,-500.0,0.00023876,2]
[405153451,1770886238750,-500.0,0.00023876,2]
[405153453,1770886238760,-500.0,0.00023876,2]
[405153455,1770886238768,-500.0,0.00023876,2]
[405153457,1770886238778,-500.0,0.00023876,2]
[405153459,1770886238787,-500.0,0.00023876,2]
[405153461,1770886238796,-500.0,0.00023876,2]
[405153463,1770886238806,-500.0,0.00023876,2]
[405153465,1770886238815,-500.0,0.00023876,2]
[405153467,1770886238824,-500.0,0.00023876,2]
[405153469,1770886238834,-500.0,0.00023876,2]
[405153471,1770886238843,-332.011448,0.00023876,2]
[405153473,1770886238852,-612.15412482,0.00023876,2]
[405153475,1770886238862,-500.0,0.00023876,2]
[405153477,1770886238871,-500.0,0.00023876,2]
[405153479,1770886238880,-500.0,0.00023876,2]
[405153481,1770886238889,-500.0,0.00023876,2]
[405153483,1770886238899,-500.0,0.00023876,2]
[405153485,1770886238910,-500.0,0.00023876,2]
[405153487,1770886238924,-500.0,0.00023876,2]
[405153489,1770886238934,-500.0,0.00023876,2]
[405153491,1770886238943,-500.0,0.00023876,2]
[405153493,1770886238952,-500.0,0.00023876,2]
[405153495,1770886238962,-500.0,0.00023876,2]
[405153497,1770886238971,-500.0,0.00023876,2]
[405153499,1770886238981,-500.0,0.00023876,2]
[405153501,1770886238991,-500.0,0.00023876,2]
[405153503,1770886239001,-500.0,0.00023876,2]
[405153506,1770886239011,-500.0,0.00023876,2]
[405153508,1770886239021,-500.0,0.00023876,2]
[405153510,1770886239031,-500.0,0.00023876,2]
[405153511,1770886239040,-500.0,0.00023876,2]
[405153513,1770886239050,-500.0,0.00023876,2]
[405153515,1770886239059,-500.0,0.00023876,2]
[405153518,1770886239069,-500.0,0.00023876,2]
[405153520,1770886239079,-500.0,0.00023876,2]
[405153522,1770886239088,-300.0,0.00023876,2]
[405153524,1770886239097,-300.0,0.00023876,2]
[405153526,1770886239107,-300.0,0.00023876,2]
[405153528,1770886239117,-300.0,0.00023876,2]
[405153530,1770886239126,-1200.0,0.00023876,2]
[405153532,1770886239135,-2000.0,0.00023876,2]
[405153533,1770886239145,-2000.0,0.00023876,2]
[405153536,1770886239154,-2000.0,0.00023876,2]
[405153538,1770886239164,-2000.0,0.00023876,2]
[405153540,1770886239174,-784.14938459,0.00023876,2]
[405153542,1770886239184,-50000.0,0.00023877,2]
[405153544,1770886239194,-300.0,0.00023877,2]
[405153546,1770886239204,-151.0,0.00023889,2]
[405153548,1770886239214,-500.0,0.00023892,2]
[405153550,1770886239223,-320.94851018,0.00023893,2]
[405153552,1770886239232,-500.0,0.00023893,2]
[405153554,1770886239241,-500.0,0.00023893,2]
[405153556,1770886239254,-500.0,0.00023897,2]
[405153557,1770886239263,-500.0,0.00023897,2]
[405153559,1770886239273,-384.49,0.00023897,2]
[405153561,1770886239281,-500.0,0.00023897,2]
[405153563,1770886239291,-500.0,0.00023897,2]
[405153565,1770886239303,-234.55092214,0.00023897,2]
[405153567,1770886239320,-167.45,0.00023962,2]
[405153569,1770886239338,-1022.87926361,0.00023966,10]
[405153572,1770886239355,-81.99073639,0.00023966,10]
[405153574,1770886239365,-500.0,0.00023975,2]
[405153576,1770886239374,-168.0,0.00023976,2]
[405153578,1770886239384,-250.0,0.00023976,2]
[405153580,1770886239393,-250.0,0.00023976,2]
[405153582,1770886239403,-273.42047428,0.00023976,2]
[405153591,1770886239412,-250.0,0.00023976,2]
[405153593,1770886239491,-500.0,0.00023976,2]
[405153595,1770886239502,-167.57899057,0.00023976,2]
[405153597,1770886239511,-250.0,0.00023976,2]
[405153599,1770886239520,-500.0,0.00023976,2]
[405153601,1770886239530,-250.0,0.00023976,2]
[405153603,1770886239539,-500.0,0.00023976,2]
[405153605,1770886239548,-250.0,0.00023976,2]
[405153607,1770886239557,-500.0,0.00023976,2]
[405153609,1770886239567,-250.0,0.00023976,2]
[405153611,1770886239576,-198.65652937,0.00023976,2]
[405153613,1770886239585,-287.60191875,0.00023976,2]
[405153616,1770886239595,-250.0,0.00023976,2]
[405153618,1770886239605,-250.0,0.00023976,2]
[405153620,1770886239615,-250.0,0.00023976,2]
[405153622,1770886239625,-298.05592488,0.00023976,2]
[405153624,1770886239636,-337.67538073,0.00023976,2]
[405153626,1770886239645,-250.0,0.00023976,2]
[405153628,1770886239655,-201.93286099,0.00023976,2]
[405153630,1770886239664,-250.0,0.00023976,2]
[405153632,1770886239675,-209.40437684,0.00023976,2]
[405153634,1770886239685,-250.0,0.00023976,2]
[405153636,1770886239695,-217.15233878,0.00023976,2]
[405153638,1770886239704,-250.0,0.00023976,2]
[405153640,1770886239724,-250.0,0.00023976,2]
[405153642,1770886239734,-225.18697532,0.00023976,2]
[405153644,1770886239742,-250.0,0.00023976,2]
[405153646,1770886239752,-233.51889341,0.00023976,2]
[405153648,1770886239761,-250.0,0.00023976,2]
[405153650,1770886239770,-242.15909246,0.00023976,2]
[405153652,1770886239778,-250.0,0.00023976,2]
[405153654,1770886239787,-251.11897888,0.00023976,2]
[405153656,1770886239797,-250.0,0.00023976,2]
[405153658,1770886239805,-298.246722,0.00023976,2]
[405153660,1770886239815,-250.0,0.00023976,2]
[405153662,1770886239824,-250.0,0.00023976,2]
[405153664,1770886239833,-250.0,0.00023976,2]
[405153666,1770886239842,-265.95747278,0.00023979,2]
[405153668,1770886239852,-3122.1,0.0002398,3]
[405153670,1770886239861,-1561.05,0.0002398,3]
[405153672,1770886239870,-780.52,0.0002398,3]
[405153674,1770886239879,-390.26,0.0002398,3]
[405153676,1770886239888,-195.13,0.0002398,3]
[405153678,1770886239898,-585.43,0.0002398,3]
[405153680,1770886239908,-911.34,0.0002398,10]
[405153682,1770886239918,-1591.01,0.0002398,10]
[405153684,1770886239927,-739.83175171,0.00023986,2]
[405153686,1770886239936,-323.92159208,0.00023986,2]
[405153688,1770886239946,-369.82590913,0.00023986,2]
[405153690,1770886239955,-436.8079969,0.00023986,2]
[405153692,1770886239964,-427.9135977,0.00023988,2]
[405153694,1770886239975,-3062.0127526,0.00023988,2]
[405153696,1770886239984,-1325.85,0.0002399,10]
[405153698,1770886239994,-1743.21910208,0.00024,2]
[405153700,1770886240003,-467.58960116,0.00024,2]
[405153702,1770886240012,-197.97,0.00024,14]
[405153704,1770886240021,-1000.0,0.00024,2]
[405153706,1770886240031,-173.46,0.00024,2]
[405153708,1770886240041,-39749.99324711,0.00024,2]
[405153711,1770886240062,-10154.98,0.00024,30]
[405153714,1770886240079,-160.58,0.00024,7]
[405153717,1770886240093,-10453.36,0.00024,2]
[405153719,1770886240107,-13135.53225067,0.00024012,2]
[405153778,1770886240650,-4186.23306618,0.00024012,2]
[405153781,1770886240667,-247.09280815,0.00024018,2]
[405153784,1770886240684,-168.0,0.00024062,2]
[405153786,1770886240701,-250.0,0.00024093,2]
[405153788,1770886240713,-2136.40059978,0.00024142,2]
[405153791,1770886240725,-196.746,0.00024142,6]
[405153793,1770886240741,-500.0,0.00024166,2]
[405153796,1770886240755,-784.0,0.000243,2]
[405153798,1770886240767,-168.0,0.00024369,2]
[405153800,1770886240781,-600.0,0.00024419,10]
[405153803,1770886240793,-515.92331516,0.0002444,2]
[405153805,1770886240806,-6444.07517678,0.0002465,2]
[405153941,1770886246583,-1162.27895591,0.0002465,2]
[405153949,1770886269047,500.0,0.00013699,2]
[405153956,1770886444525,500.0,0.00013699,2]
[405153957,1770886528939,500.00000003,0.00013699,2]
[405153962,1770886564916,327.54,0.0003,120]
[405153964,1770886644726,4278.99262356,0.0002352,2]
[405153965,1770886867819,296.51320183,0.00013699,2]
[405153966,1770886894268,651.136,0.00023344,2]
[405153968,1770887104436,200.919,0.000233,2]
[405154017,1770887247618,5000.0,0.0002352,2]
[405154280,1770887437769,-200.2745,0.0002361,2]
[405154282,1770887437779,-182.55,0.000238,2]
[405154284,1770887437788,-247.4967027,0.0002381,2]
[405154286,1770887437797,-500.0,0.0002389,2]
[405154288,1770887437806,-500.0,0.0002389,2]
[405154290,1770887437816,-297.38,0.0002389,2]
[405154292,1770887437825,-1024.8477221,0.00023964,3]
[405154294,1770887437834,-265.08587774,0.0002398,3]
[405154296,1770887437844,-1200.0,0.00023985,2]
[405154298,1770887437854,-476.21195523,0.00023985,2]
[405154300,1770887437863,-378.93497346,0.00023986,2]
[405154302,1770887437873,-433.0685411,0.00023986,2]
[405154304,1770887437882,-50000.0,0.00023986,2]